Workbook

Sheet 2給報
C2: =計算!A1+1 -> 6 | X2: №１ | AA2: ※ | AK2: ※
F4: ※区分 | Z4: 受給者番号
C5: 支 払 | H5: =IF((L11+C22+F21+N21+X21+AI21+J26+R26+Z26+AH26+AR26+J30+Z32+AH32+AR32)+COUNTA(C18,G17,Q17,U18,W18,AA18,AC18,AG17,AJ18,AM18,AP17)>0,IF(COUNTIF(AW12:AW38,"<>ok")=0,"計算OK",IF(COUNTIF(AW12:AW38,"<>ok")-COUNTIF(AW31,"<>ok")=0,"要確認","エラーが有ります")),"入力できます") -> 入力できます | Y5: 氏 | Z5: フリガナ
F6: 住 | Z6: （カタカナ）
C7: を受け | Z7: 役職名 | AW7: 旧生命保険 | AX7: 新生命保険 | AY7: 旧個人年金 | AZ7: 新個人年金 | BA7: 介護医療
F8: 所 | Y8: 名 | AW8: =ROUNDUP(IF(R26>0,IF(R26<25001,R26,IF(R26<50001,R26*0.5+12500,IF(R26<100000,R26*0.25+25000,50000))),0),0) -> 0 | AX8: =ROUNDUP(IF(J26>0,IF(J26<20001,J26,IF(J26<40001,J26*0.5+10000,IF(J26<80000,J26*0.25+20000,40000))),0),0) -> 0 | AY8: =ROUNDUP(IF(AR26>0,IF(AR26<25001,AR26,IF(AR26<50001,AR26*0.5+12500,IF(AR26<100000,AR26*0.25+25000,50000))),0),0) -> 0 | AZ8: =ROUNDUP(IF(AH26>0,IF(AH26<20001,AH26,IF(AH26<40001,AH26*0.5+10000,IF(AH26<80000,AH26*0.25+20000,40000))),0),0) -> 0 | BA8: =ROUNDUP(IF(Z26>0,IF(Z26<20001,Z26,IF(Z26<40001,Z26*0.5+10000,IF(Z26<80000,Z26*0.25+20000,40000))),0),0) -> 0
C9: る 者 | AW9: =IF(SUM(AW8:AX8)<40000,SUM(AW8:AX8),40000) -> 0 | AX9: =MAX(AW9,AW8) -> 0 | AY9: =IF(SUM(AY8:AZ8)<40000,SUM(AY8:AZ8),40000) -> 0 | AZ9: =MAX(AY9,AY8) -> 0 | BA9: =BA8 -> 0
C10: 種 別 | L10: 支 払 金 額 | U10: 給与所得控除後の金額 | AC10: 所得控除の額の合計額 | AM10: 源泉徴収税額 | AW10: ↓エラー | AY10: 生命保険料控除金額
B11: 三枚目に下敷を入れてください。 | U11: =計算!E4 -> 0 | AC11: =計算!F4 -> 480000 | AM11: =計算!G9 -> 0 | AY11: =IF(AX9+AZ9+BA9<=120000,AX9+AZ9+BA9,IF(12000<=AX9+AZ9+BA9,120000)) -> 0
AW12: =IF(AH32+F21>C22,"国民年金保険料>社保料控除となっています。（国民年金は内数を記載）","ok") -> ok
AW13: =IF(AI21>計算!K24,"借入金控除エラー(正"&計算!K24&"円)","ok") -> ok
C14: (源泉)控除対象配偶 | J14: 配偶者（特別） 控除の額 | S14: 控除対象扶養親族の数 （配 偶 者 を 除 く） | AG14: 16歳未満 扶養親族 の数 | AJ14: 障害者の数 （本人を除く） | AS14: 非居住者 である 親族の数 | AW14: =IF(AND(計算!L24<=50,J30>AI21),IF(計算!L24>0,"借入金控除チェック(50円足りない？)","ok"),"ok") -> ok
C15: 者の有無等 | AW15: =IF(AC11>=U11,IF(AI21>0,"借入金控除不要、可能額のみ記載","ok"),"ok") -> ok
G16: 老人 | Q16: 特 定 | U16: 老 人 | AA16: そ の 他 | AJ16: 特 別 | AP16: その他 | AW16: =IF(J30>0,IF(AI21>J30,"借入金控除が可能額を超えています","ok"),"ok") -> ok | AZ16: 復興所得税抜き源泉徴収税額
C17: 有 | E17: 従有 | I17: =計算!D7+計算!D8+計算!D9 -> 0 | S17: 従人 | U17: 内 | Y17: 従人 | AA17: 一般 | AC17: 16-18 | AE17: 従人 | AJ17: 内 | AW17: =IF(AND(AM11>0,AI21<1,J30>0),"借入金控除を入力してください","ok") -> ok | AZ17: =IF(計算!G4=0,"0",計算!G4) -> 0
AW18: =IF(F21>C22,"小規模共済は社会保険料控除の内数です","ok") -> ok
AW19: =IF(N21>120000,"生命保険控除は最高120,000です","ok") -> ok
C20: 社会保険料等の金額 | N20: 生命保険料の控除額 | X20: 地震保険料の控除額 | AI20: 住宅借入金等特別控除の額 | AW20: =IF(X21>50000,"地震保険控除は最高50,000です","ok") -> ok
C21: 内小規模 | AW21: =IF(AND(G17="〇",C18<>"〇"),"老人配偶者の場合、配偶者有にも記載が必要です","ok") -> ok
AW22: =IF(U18>W18,"老人扶養もれ（内同居にのみ入力されています)","ok") -> ok
C23: （摘要） | AW23: =IF(X21<計算!N43,"旧長期損害保険があるため地震保険料控除は"&計算!N43&"円以上となります","ok") -> ok
AW24: =IF(AJ18>AM18,"特別障害もれ(内同居にのみ入力されています)","ok") -> ok
AW25: =IF(AP17+AM18>COUNTA(C18)+Q17+W18+AA18+AC18+AG17,"障害者の人数が扶養人数を上回っています","ok") -> ok
C26: 生命保険料 の金額の 内訳 | F26: 新生命保険料 の金額 | N26: 旧生命保険料 の金額 | V26: 介護医療保 険料の金額 | AD26: 新個人年金 保険料の金額 | AM26: 旧個人年金 保険料の金額 | AW26: =IF(AND(L42<>"",N42<>""),"本人障害が特別とその他で重複しています","ok") -> ok
AW27: =IF(COUNTA(P42)+COUNTA(R42)>1,"ひとり親と寡婦控除が重複しています","ok") -> ok
C28: 住宅借入 金等特別 控除の額 の内訳 | F28: 住宅借入金等 特別控除適用数 | N28: 居住開始年月日 （１ 回 目） | R28: =IF(J30+AI21>0,"忘れずに記載してください","") ->  | Z28: 住宅借入金等特別 控除区分（１回目） | AD28: =IF(J30+AI21>0,"忘れずに記載してください","") ->  | AH28: 住宅借入金等 年末残高（１回目） | AM28: =IF(J30+AI21>0,"忘れずに記載してください","") ->  | AW28: =IF(AND(R42="〇",Q17+AA18+AC18+AG17<1),"ひとり親要件（子の扶養）無し","ok") -> ok
AW29: =IF((N21=(AY11)),"ok","生命保険料の金額と控除額が合いません(上段ピンク欄参照)") -> ok
F30: 住宅借入金等 特別控除可能額 | N30: 居住開始年月日 （２ 回 目） | Z30: 住宅借入金等特別 控除区分（２回目） | AH30: 住宅借入金等 年末残高（２回目） | AW30: =IF(L11>20000000,"収入2000万円を超える方は年末調整非該当です","ok") -> ok
AW31: =IF(AND(AI21>0,AM11=0,OR(J30=0,J30="")),"住宅借入金可能額は有りませんか？控除から税額を引いて残りがある場合、可能額の記載が必要","ok") -> ok
V32: 配偶者の 合計所得 | AD32: 国民年金保険 料等の金額 | AM32: 旧長期損害 保険料の金額 | AW32: =IF(AND(OR(P42="〇",R42="〇"),U11>5000000),"所得500万超えのため寡婦及びひとり親控除非該当です","ok") -> ok
AW33: ok
AW34: =IF(AND(C18="〇",Z32>480000),"配偶者特別控除となるため配偶者控除有の欄は空欄となります","ok") -> ok
AJ35: 所得金額調整控除 | AW35: =IF(AND(G17="〇",Z32>480000),"配偶者特別控除となるため配偶者控除老人の欄は空欄となります","ok") -> ok
E36: =IF(Q17+W18+AA18+AC18+AG17+AM18+AP17>0,"控除対象配偶者・扶養親族等がいる場合には氏名等を忘れずに記載してください。","") ->  | AW36: =IF(AND(OR(P42="〇",R42="〇"),I17>0),"配偶者がいるため寡婦及びひとり親控除非該当です","ok") -> ok
AW37: =IF(AND(Z32<=480000,Z32>0,C18=""),"控除対象配偶者「有」の記入漏れはありませんか？控除対象配偶者がいない場合は合計所得も不要です","ok") -> ok
AW38: =IF(AR35=計算!N20,"ok","所得金額調整控除の漏れまたは誤りです") -> ok
C39: 未成年 | E39: 外個人 | G39: 死亡退職 | I39: 災害者 | J39: 乙欄 | L39: 本人が障害者 | P39: 寡 婦 | R39: ひとり 親 | V39: 勤労学生 | X39: 中 途 就 ・ 退 職 | AH39: 受 給 者 生 年 月 日 | AX39: =IF(AR35=計算!N20,,"配偶者及び扶養控除該当の方以外に調整控除対象者がいる場合は、問題ありません") -> 0
L40: 特別 | N40: 他 | O40: その | X40: 就職 | Z40: 退職 | AB40: 年 | AD40: 月 | AF40: 日 | AH40: 明 | AJ40: 大 | AL40: 昭 | AN40: 平 | AP40: 年 | AR40: 月 | AT40: 日
B42: 市町村提出用 | AB42: 5
C43: 支 | E43: 住所（居所）
E44: 又は所在地
C45: 払
E46: 氏名又は
E47: 名称 | AD47: （電話）
C48: 者

Sheet 計算 (hidden)
A1: 5 | B1: 年分 | E1: 調整前所得
B2: その他所得 | E2: =K16+L16+C1 -> 0
A3: 給 与 収 入 | C3: ='2給報'!L11 -> 0 | D3: 給与収入計 | E3: 所得控除後の金額 | F3: 控除の額の合計 | G3: 所得税額 | I3: 給与収入 | K3: 計算式 | L3: 算出額 | N3: 控除対象配偶者に当たる | R3: 控除対象配偶者に当たらない
D4: =SUM(C3:C6) -> 0 | E4: =K16+L16-N20 -> 0 | F4: =SUM(D7:D21)+(SUM(D24:D30))+C31 -> 480000 | G4: =L24 -> 0 | I4: 0 | J4: 550999 | K4: 0 | L4: 0 | N4: 所得者の合計所得 | P4: 配控 | Q4: 老人 | R4: 配偶者の合計所得 | T4: 配控 | U4: ～900 | V4: ～950 | W4: ～1000 | X4: 1000超
I5: 551000 | J5: 1618999 | K5: A-550,000 | L5: =D4-550000 -> -550000 | N5: 0 | O5: 9000000 | P5: 38 | Q5: 48 | R5: 480001 | S5: 950000 | T5: 0 | U5: 38 | V5: 26 | W5: 13 | X5: 0
F6: 課税標準額 | G6: 復興特別所得税 | I6: 1619000 | J6: 1619999 | K6: 1069000 | L6: 1069000 | N6: 9000001 | O6: 9500000 | P6: 26 | Q6: 32 | R6: 950001 | S6: 1000000 | T6: 0 | U6: 36 | V6: 24 | W6: 12 | X6: 0
A7: 控 除 額 | B7: 配偶者控除 | C7: =IF(AND('2給報'!C18="〇",'2給報'!G17<>"〇"),1,0) -> 0 | D7: =O15*10000*C7 -> 0 | F7: =ROUNDDOWN(E4-F4,-3) -> -480000 | G7: =ROUNDDOWN(L24*2.1%,0) -> 0 | I7: 1620000 | J7: 1621999 | K7: 1070000 | L7: 1070000 | N7: 9500001 | O7: 10000000 | P7: 13 | Q7: 16 | R7: 1010000 | S7: 1050000 | T7: 0 | U7: 31 | V7: 21 | W7: 11 | X7: 0
B8: (老人) | C8: =IF('2給報'!G17="〇",1,0) -> 0 | D8: =Q15*10000*C8 -> 0 | I8: 1622000 | J8: 1623999 | K8: 1072000 | L8: 1072000 | N8: 10000001 | P8: 0 | Q8: 0 | R8: 1050001 | S8: 1100000 | T8: 0 | U8: 26 | V8: 18 | W8: 9 | X8: 0
B9: 配偶者特別控除 | C9: ='2給報'!I17 -> 0 | D9: =IF(AND(E4<=9000000),S17,IF(AND(9000000<=E4,E4<=9500000),V17,IF(AND(9500000<=E4,E4<=10000000),W17,IF(AND(10000000<=E4),X17))))*10000 -> 0 | F9: 所得税及び復興特別所得税の額 | G9: =ROUNDDOWN(G4+G7,-2) -> 0 | I9: 1624000 | J9: 1627999 | K9: 1074000 | L9: 1074000 | R9: 1100001 | S9: 1150000 | T9: 0 | U9: 21 | V9: 14 | W9: 7 | X9: 0
B10: 特定扶養 | C10: ='2給報'!Q17 -> 0 | D10: =C10*630000 -> 0 | I10: 1628000 | J10: 1799999 | K10: A/4*2.4+100,000 | L10: =ROUNDDOWN(D4/4,-3)*2.4+100000 -> 100000 | R10: 1150001 | S10: 1200000 | T10: 0 | U10: 16 | V10: 11 | W10: 6 | X10: 0
B11: （同居） | C11: ='2給報'!U18 -> 0 | D11: =C11*100000 -> 0 | I11: 1800000 | J11: 3599999 | K11: A/4*2.8-80,000 | L11: =ROUNDDOWN(D4/4,-3)*2.8-80000 -> -80000 | R11: 1200001 | S11: 1250000 | T11: 0 | U11: 11 | V11: 8 | W11: 4 | X11: 0
B12: 老人扶養 | C12: ='2給報'!W18 -> 0 | D12: =C12*480000 -> 0 | I12: 3600000 | J12: 6599999 | K12: A/4*3.2-440,000 | L12: =ROUNDDOWN(D4/4,-3)*3.2-440000 -> -440000 | R12: 1250001 | S12: 1300000 | T12: 0 | U12: 6 | V12: 4 | W12: 2 | X12: 0
B13: その他扶養 一般 | C13: ='2給報'!AA18 -> 0 | D13: =C13*380000 -> 0 | I13: 6600000 | J13: 8500000 | K13: A*0.9-1,100,000 | L13: =ROUNDDOWN(D4*0.9-1100000,0) -> -1100000 | R13: 1300001 | S13: 1330000 | T13: 0 | U13: 3 | V13: 2 | W13: 1 | X13: 0
B14: その他扶養 16-18 | C14: ='2給報'!AC18 -> 0 | D14: =C14*380000 -> 0 | E14: 配偶者の合計所得 | I14: 8500001 | J14: 99999999 | K14: A-1,950,000 | L14: =ROUNDDOWN(D4-1950000,0) -> -1950000 | R14: 1330001 | U14: 0 | V14: 0 | W14: 0 | X14: 0
B15: （同居） | C15: ='2給報'!AJ18 -> 0 | D15: =C15*350000 -> 0 | E15: ='2給報'!Z32 -> 0 | F15: =S17*10000 -> 0 | O15: =IF(AND(N5<=E4,E4<=O5),P5,IF(AND(N6<=E4,E4<=O6),P6,IF(AND(N7<=E4,E4<=O7),P7,IF(AND(N8<=E4,E4<=O8),P8)))) -> 38 | Q15: =IF(AND(N5<=E4,E4<=O5),Q5,IF(AND(N6<=E4,E4<=O6),Q6,IF(AND(N7<=E4,E4<=O7),Q7,IF(AND(N8<=E4,E4<=O8),Q8)))) -> 48 | S15: =IF(AND(R5<=E15,E15<=S5),U5,IF(AND(R6<=E15,E15<=S6),U6,IF(AND(R7<=E15,E15<=S7),U7,IF(AND(R8<=E15,E15<=S8),U8,IF(AND(R9<=E15,E15<=S9),U9,IF(AND(R10<=E15,E15<=S10),U10,IF(AND(R11<=E15,E15<=S11),U11))))))) -> FALSE | V15: =IF(AND(R5<=E15,E15<=S5),V5,IF(AND(R6<=E15,E15<=S6),V6,IF(AND(R7<=E15,E15<=S7),V7,IF(AND(R8<=E15,E15<=S8),V8,IF(AND(R9<=E15,E15<=S9),V9,IF(AND(R10<=E15,E15<=S10),V10,IF(AND(R11<=E15,E15<=S11),V11))))))) -> FALSE | W15: =IF(AND(R5<=E15,E15<=S5),W5,IF(AND(R6<=E15,E15<=S6),W6,IF(AND(R7<=E15,E15<=S7),W7,IF(AND(R8<=E15,E15<=S8),W8,IF(AND(R9<=E15,E15<=S9),W9,IF(AND(R10<=E15,E15<=S10),W10,IF(AND(R11<=E15,E15<=S11),W11))))))) -> FALSE | X15: =IF(AND(R5<=E15,E15<=S5),X5,IF(AND(R6<=E15,E15<=S6),X6,IF(AND(R7<=E15,E15<=S7),X7,IF(AND(R8<=E15,E15<=S8),X8,IF(AND(R9<=E15,E15<=S9),X9,IF(AND(R10<=E15,E15<=S10),X10,IF(AND(R11<=E15,E15<=S11),X11))))))) -> FALSE
B16: 障害特別 | C16: ='2給報'!AM18 -> 0 | D16: =C16*400000 -> 0 | E16: 新生命保険料金額 | G16: 旧生命保険料金額 | K16: =IF(AND(D4<=J4),L4,IF(AND(I5<=D4,D4<=J5),L5,IF(AND(I6<=D4,D4<=J6),L6,IF(AND(I7<=D4,D4<=J7),L7,IF(AND(I8<=D4,D4<=J8),L8,IF(AND(I9<=D4,D4<=J9),L9,IF(AND(I10<=D4,D4<=J10),L10))))))) -> 0 | L16: =IF(AND(I11<=D4,D4<=J11),L11,IF(AND(I12<=D4,D4<=J12),L12,IF(AND(I13<=D4,D4<=J13),L13,IF(AND(I14<=D4,D4<=J14),L14,IF(AND(I15<=D4),L15))))) -> 0 | S16: =IF(AND(R12<=E15,E15<=S12),U12,IF(AND(R13<=E15,E15<=S13),U13,IF(AND(R14<=E15),U14))) -> FALSE | V16: =IF(AND(R12<=E15,E15<=S12),V12,IF(AND(R13<=E15,E15<=S13),V13,IF(AND(R14<=E15),V14))) -> FALSE | W16: =IF(AND(R12<=E15,E15<=S12),W12,IF(AND(R13<=E15,E15<=S13),W13,IF(AND(R14<=E15),W14))) -> FALSE | X16: =IF(AND(R12<=E15,E15<=S12),X12,IF(AND(R13<=E15,E15<=S13),X13,IF(AND(R14<=E15),X14))) -> FALSE
B17: （普通） | C17: ='2給報'!AP17 -> 0 | D17: =C17*270000 -> 0 | E17: ='2給報'!J26 -> 0 | F17: =ROUNDDOWN(O29,0) -> 0 | G17: ='2給報'!R26 -> 0 | H17: =ROUNDDOWN(Q29,0) -> 0 | I17: 所得税税率 | S17: =S15+S16 -> 0 | V17: =V15+V16 -> 0 | W17: =W15+W16 -> 0 | X17: =X15+X16 -> 0
B18: 社会保険料 | C18: ='2給報'!C22:M22 -> 0 | D18: =C18 -> 0 | E18: 新個人年金保険料の金額 | G18: 旧個人年金保険料の金額 | I18: 1000 | J18: 1950000 | K18: 0.05 | L18: =F7*0.05 -> -24000 | N18: 所得金額調整控除（子育て・介護世帯）
B19: （小規模企業共済） | C19: ='2給報'!F21 -> 0 | D19: ←上記の内数 | E19: ='2給報'!AH26 -> 0 | F19: =ROUNDDOWN(O31,0) -> 0 | G19: ='2給報'!AR26 -> 0 | H19: =ROUNDDOWN(Q31,0) -> 0 | I19: 1950000 | J19: 3300000 | K19: 10%-97500 | L19: =F7*0.1-97500 -> -145500 | N19: =IF(AND(C10+C14+C16+C24+C33=0),0,IF(AND(C10+C14+C16+C24+C33>=1),(D4-8500000)*0.1)) -> 0
B20: 生命保険料控除 | C20: ='2給報'!N21 -> 0 | D20: =C20 -> 0 | E20: 介護医療保険料の金額 | I20: 3300000 | J20: 6950000 | K20: 20%-427500 | L20: =F7*0.2-427500 -> -523500 | N20: =IF(AND(N19<=0),0,IF(AND(N19>=1,N19<=150000),N19,IF(AND(N19>=150001),150000,))) -> 0
B21: 地震保険料控除 | C21: ='2給報'!X21 -> 0 | D21: =C21 -> 0 | E21: ='2給報'!Z26 -> 0 | F21: =ROUNDDOWN(O42,0) -> 0 | I21: 6950000 | J21: 9000000 | K21: 23%-636000 | L21: =F7*0.23-636000 -> -746400
B22: 医療費控除 | D22: =C22 -> 0 | I22: 9000000 | J22: 17420000 | K22: 33%-1536000 | L22: =F7*0.33-1536000 -> -1694400
A23: 住宅特別控除（税額控除） | C23: ='2給報'!AI21 -> 0 | E23: 旧長期損害保険料の金額
A24: 本人該当控除 | B24: 特別障害 | C24: =IF('2給報'!L42="〇",1,0) -> 0 | D24: =C24*400000 -> 0 | E24: ='2給報'!AR32 -> 0 | F24: =O44 -> 0 | K24: =IF(AND(I18<F7,F7<=J18),L18,IF(AND(I19<F7,F7<=J19),L19,IF(AND(I20<F7,F7<=J20),L20,IF(AND(I21<F7,F7<=J21),L21,IF(AND(I22<F7,F7<=J22),L22,IF(AND(I23<F7),L23)))))) -> FALSE | L24: =K24-C23 -> 0
B25: 普通障害 | C25: =IF('2給報'!N42="〇",1,0) -> 0 | D25: =C25*270000 -> 0 | I25: 生命保険料控除
B26: 老年者 | D26: =IF(E3>10000000,0,C26*500000) -> 0 | I26: 旧生命 | J26: 0 | K26: 25000 | L26: A | M26: =G17 -> 0
B27: 寡婦 | C27: =IF('2給報'!P42="〇",1,0) -> 0 | D27: =C27*270000 -> 0 | J27: 25001 | K27: 50000 | L27: A＊0.5＋12,500 | M27: =ROUNDUP(G17*0.5+12500,0) -> 12500
B28: ひとり親 | C28: =IF('2給報'!R42="〇",1,0) -> 0 | D28: =C28*350000 -> 0 | J28: 50001 | K28: 以上 | L28: A＊0.25＋25,000 | M28: =ROUNDUP(G17*0.25+25000,0) -> 25000 | N28: =IF(AND(E17<=K26),E17,IF(AND(J27<=E17,E17<=K27),M27,IF(AND(J28<=E17),M28))) -> 0 | O28: =IF(AND(E17<=K29),E17,IF(AND(J30<=E17,E17<=K30),M30,IF(AND(J31<=E17),M31))) -> 0
C29: ='2給報'!T42 -> 0 | D29: =C29*270000 -> 0 | I29: 旧個人 | J29: 0 | K29: 25000 | L29: B | M29: =G19 -> 0 | N29: =IF(N28<=50000,N28,IF(50000<=N28,50000)) -> 0 | O29: =IF(O28<=50000,O28,IF(50000<=O28,50000)) -> 0
B30: 勤労学生 | C30: =IF('2給報'!V42="〇",1,0) -> 0 | D30: =C30*270000 -> 0 | J30: 25001 | K30: 50000 | L30: B＊0.5＋12,500 | M30: =ROUNDUP(G19*0.5+12500,0) -> 12500
B31: 基礎控除 | C31: 480000 | J31: 50001 | K31: 以上 | L31: B＊0.25＋25,000 | M31: =ROUNDUP(G19*0.25+25000,0) -> 25000
A32: 控除額計 | C32: =SUM(D8:D31)+C31 -> 480000 | I32: 新生命 | J32: 0 | K32: 20000 | L32: C | M32: =E17 -> 0
B33: 16歳未満扶養親族 | C33: ='2給報'!AG17 -> 0 | J33: 20001 | K33: 40000 | L33: C＊0.5＋10,000 | M33: =ROUNDUP(E17*0.5+10000,0) -> 10000
J34: 40001 | K34: 以上 | L34: C＊0.25＋20,000 | M34: =ROUNDUP(E17*0.25+20000,0) -> 20000 | N34: =IF(AND(E17<=K32),E17,IF(AND(J33<=E17,E17<=K33),M33,IF(AND(J34<=E17),M34))) -> 0 | O34: =IF(AND(E19<=K35),E19,IF(AND(J36<=E19,E19<=K36),M36,IF(AND(J37<=E19),M37))) -> 0
I35: 新個人 | J35: 0 | K35: 20000 | L35: D | M35: =E19 -> 0 | N35: =IF(N34<=40000,N34,IF(40000<=N34,40000)) -> 0 | O35: =IF(O34<=40000,O34,IF(40000<=O34,0)) -> 0
J36: 20001 | K36: 40000 | L36: D＊0.5＋10,000 | M36: =ROUNDUP(E19*0.5+10000,0) -> 10000
J37: 40001 | K37: 以上 | L37: D＊0.25＋20,000 | M37: =ROUNDUP(E19*0.25+20000,0) -> 20000
I38: 介護 | J38: 0 | K38: 25000 | L38: E | M38: =E21 -> 0 | N38: =IF(AND(E21<=K38),E21,IF(AND(J39<=E21,E21<=K39),L39,IF(AND(J40<=E21),L40))) -> 0
J39: 25001 | K39: 50000 | L39: E＊0.5＋10,000 | M39: =ROUNDUP(E24*0.5+10000,0) -> 10000 | N39: =IF(N38<=40000,N38,IF(40000<=N38,0)) -> 0
J40: 50001 | K40: 以上 | L40: E＊0.25＋20,000 | M40: =ROUNDUP(E24*0.25+20000,0) -> 20000
I41: 損害保険料控除
I42: 長期 | J42: 0 | K42: 10000 | L42: A | M42: =E24 -> 0 | N42: =IF(E24<=K42,E24,M43) -> 0 | O42: =IF(F27<=K44,F27,M45) -> 0
J43: =+K42+1 -> 10001 | K43: 以上 | L43: A＊0.5＋5,000 | M43: =E24*0.5+5000 -> 5000 | N43: =IF(N42<=15000,N42,15000) -> 0 | O43: =IF(O42<=3000,O42,IF(3000<=O42,3000)) -> 0
I44: 地震 | J44: 0 | K44: 2000 | L44: B*0.5 | M44: =E22*0.5 -> 0 | O44: =IF(N43+O43<=15000,N43+O43,IF(15000<=N43+O43,15000)) -> 0
J45: =+K44+1 -> 2001 | K45: 以上 | L45: B＊0.5＋1,000 | M45: =0*0.5+1000 -> 1000
